bitfinex/quotes_SOLUSD_20240811
["timestamp","ask_amount","ask_price","bid_price","bid_amount"]
[1723355179823,6.4265,155.61,155.55,7.71398506]
[1723355180132,9.78,155.6,155.55,7.71398506]
[1723355181137,18.01360816,155.62,155.55,1.28558506]
[1723355181311,9.78,155.6,155.55,7.71398506]
[1723355182534,9.78,155.6,155.55,6.4284]
[1723355183636,9.78,155.6,155.55,7.71384603]
[1723355185514,16.2068,155.6,155.55,7.71384603]
[1723355185716,16.2068,155.6,155.55,6.4284]
[1723355186012,16.2068,155.6,155.54,16.072]
[1723355186212,11.58766859,155.62,155.57,6.4278]
[1723355186435,9.78,155.6,155.55,7.71384619]
[1723355186844,9.78,155.6,155.54,16.072]
[1723355187166,6.4271,155.59,155.54,16.072]
[1723355187315,16.2067,155.6,155.54,22.5011]
[1723355187514,16.2067,155.6,155.55,1.2854758]
[1723355187748,18.01334072,155.62,155.56,6.4283]
[1723355188037,18.01334072,155.62,155.54,22.5008]
[1723355188038,6.4269,155.6,155.54,22.5008]
[1723355188215,9.78,155.6,155.56,6.4283]
[1723355188420,9.78,155.6,155.55,7.71412391]
[1723355188839,6.4264,155.61,155.55,7.71412391]
[1723355189050,9.78,155.6,155.55,7.71412391]
[1723355189838,6.4264,155.61,155.56,6.4283]
[1723355190042,9.78,155.6,155.56,6.4283]
[1723355191878,6.4264,155.61,155.56,6.4283]
[1723355192172,16.2064,155.61,155.56,6.4283]
[1723355192751,16.2059,155.62,155.56,7.71358801]
[1723355192953,16.2056,155.63,155.57,12.7545]
[1723355193160,27.79288147,155.63,155.58,23.00748493]
[1723355193468,16.2059,155.62,155.58,15.2948]
[1723355194564,9.78,155.62,155.58,15.2948]
[1723355195474,16.206,155.62,155.58,15.2948]
[1723355196245,6.426,155.62,155.58,15.2948]
[1723355196446,9.78,155.62,155.58,15.2948]
[1723355197357,9.78,155.62,155.58,16.58000095]
[1723355197963,9.78,155.62,155.58,23.00740095]
[1723355198771,16.2051,155.64,155.58,23.00740095]
[1723355199567,16.2051,155.64,155.58,21.7222]
[1723355201565,9.78,155.64,155.59,7.71200598]
[1723355201879,0.8410911,155.66,155.6,1.41059603]
[1723355202058,0.8410911,155.66,155.63,22.9987]
[1723355202258,0.8410911,155.66,155.64,1.28478424]
[1723355202459,0.8410911,155.66,155.65,1.28478428]
[1723355202863,0.8410911,155.66,155.63,22.9987]
[1723355203469,0.8410911,155.66,155.63,16.5736]
[1723355203666,17.0453911,155.66,155.63,16.5736]
[1723355204261,0.8410911,155.66,155.63,17.85849001]
[1723355205373,0.8410911,155.66,155.63,24.28379001]
[1723355208296,0.8410911,155.66,155.64,6.425]
[1723355208467,0.8410911,155.66,155.65,1.2846829]
[1723355208673,0.8410911,155.66,155.63,22.999]
[1723355209696,0.8410911,155.66,155.63,16.5736]
[1723355210378,0.8410911,155.66,155.64,1.28474878]
[1723355210590,0.8410911,155.66,155.65,1.28470318]
[1723355210781,0.8410911,155.66,155.63,22.9986]
[1723355211480,0.8410911,155.66,155.63,24.28331429]
[1723355211869,0.8410911,155.66,155.63,22.9986]
[1723355212290,0.8410911,155.66,155.64,7.70954961]
[1723355212582,0.8410911,155.66,155.65,1.28470197]
[1723355214588,0.8410911,155.66,155.63,17.85830808]
[1723355214890,0.8410911,155.66,155.63,24.28360808]
[1723355215090,0.8410911,155.66,155.63,16.5736]
[1723355215988,0.8410911,155.66,155.62,28.7597]
[1723355216391,9.78,155.65,155.59,16.5736]
[1723355217091,9.78,155.63,155.59,23.0006]
[1723355217267,9.78,155.63,155.59,16.5736]
[1723355217864,9.78,155.61,155.55,32.6455]
[1723355218071,0.8410911,155.66,155.55,32.6455]
[1723355218072,9.78,155.59,155.56,6.4283]
[1723355220090,9.78,155.59,155.57,6.4278]
[1723355221592,9.78,155.59,155.56,6.4283]
[1723355222078,9.78,155.61,155.55,33.93091238]
[1723355223705,9.78,155.61,155.58,6.4275]
[1723355223998,9.78,155.61,155.59,7.71238197]
[1723355224299,9.78,155.61,155.59,6.427]
[1723355224687,9.78,155.61,155.59,7.71227358]
[1723355225478,9.78,155.61,155.59,1.28527358]
[1723355226286,9.78,155.61,155.58,22.4963]
[1723355226981,9.78,155.61,155.58,16.0688]
[1723355227379,9.78,155.61,155.56,6.428]
[1723355228079,9.78,155.61,155.57,6.4279]
[1723355228577,16.2063,155.61,155.56,6.4283]
[1723355228985,9.78,155.61,155.56,6.4283]
[1723355229787,9.78,155.61,155.57,6.4279]
[1723355231094,9.78,155.61,155.58,6.4274]
[1723355231682,9.78,155.63,155.59,6.4271]
[1723355233180,16.2055,155.63,155.58,1.28530793]
[1723355233692,16.2055,155.63,155.57,22.4965]
[1723355233897,9.78,155.61,155.57,22.4965]
[1723355234884,9.78,155.59,155.55,16.5736]
[1723355235091,9.78,155.61,155.55,17.85909799]
[1723355235482,9.78,155.63,155.59,6.4269]
[1723355239189,9.78,155.63,155.58,6.4274]
[1723355240687,9.78,155.61,155.57,22.4969]
[1723355240887,9.78,155.61,155.57,16.069]
[1723355241288,0.12549,155.63,155.57,16.069]
[1723355241489,9.78,155.6,155.57,16.069]
[1723355241696,9.78,155.6,155.57,17.35443136]
[1723355242498,9.78,155.6,155.57,16.069]
[1723355243690,9.78,155.6,155.57,23.78224466]
[1723355245610,9.78,155.6,155.57,16.069]
[1723355247995,9.78,155.6,155.57,22.4966]
[1723355248931,9.78,155.62,155.57,22.4966]
[1723355249297,6.80197,155.63,155.57,22.4966]
[1723355249623,9.78,155.62,155.57,22.4966]
[1723355251814,16.2062,155.62,155.57,16.069]
[1723355253120,6.4262,155.62,155.57,16.069]
[1723355253420,9.78,155.61,155.57,22.4968]
[1723355256318,16.2071,155.59,155.55,16.5736]
[1723355257317,9.78,155.59,155.55,16.5736]
[1723355258419,9.78,155.59,155.55,23.0023]
[1723355260619,9.78,155.57,155.54,16.0727]
[1723355261928,9.78,155.55,155.51,38.0373]
[1723355268715,9.78,155.55,155.52,6.4299]
[1723355271829,9.78,155.55,155.51,16.076]
[1723355273833,9.78,155.55,155.51,22.5064]
[1723355274428,9.78,155.55,155.52,6.4299]
[1723355275824,9.78,155.57,155.51,16.076]
[1723355276615,9.78,155.6,155.56,6.4283]
[1723355277128,9.78,155.58,155.54,16.0727]
[1723355277514,9.78,155.58,155.54,22.5018]
[1723355278123,9.78,155.58,155.54,16.0727]
[1723355280143,6.4267,155.6,155.54,16.0727]
[1723355280338,9.78,155.59,155.54,16.0727]
[1723355281051,9.78,155.59,155.54,22.5018]
[1723355281635,16.2073,155.59,155.54,22.5018]
[1723355281846,9.78,155.57,155.54,16.0727]
[1723355282226,16.208,155.57,155.52,21.9613]
[1723355282427,9.78,155.55,155.51,6.4304]
[1723355282626,9.78,155.55,155.51,7.71635019]
[1723355283144,9.78,155.55,155.52,7.71582717]
[1723355283454,9.78,155.57,155.53,6.4295]
[1723355290033,9.78,155.57,155.52,6.4299]
[1723355291232,9.78,155.55,155.51,6.4304]
[1723355293343,9.78,155.55,155.51,7.71634215]
[1723355295660,9.78,155.55,155.51,1.28594215]
[1723355295969,9.78,155.55,155.52,6.43]
[1723355297161,6.4281,155.57,155.52,6.43]
[1723355297361,9.78,155.56,155.52,6.43]
[1723355304665,0.12549,155.58,155.53,17.3596255]
[1723355304854,16.33259,155.59,155.54,6.429]
[1723355306265,6.4275,155.58,155.53,16.0737]
[1723355306458,6.4275,155.58,155.53,17.35947662]
[1723355307569,9.78,155.61,155.57,6.4277]
[1723355308255,16.2059,155.62,155.57,6.4277]
[1723355308657,6.4263,155.61,155.56,6.4283]
[1723355309451,6.19513521,155.64,155.57,7.71327063]
[1723355309651,9.78,155.63,155.58,1.28527284]
[1723355309868,9.78,155.63,155.58,7.71277284]
[1723355310453,16.2056,155.63,155.58,1.28527284]
[1723355310651,9.78,155.63,155.58,16.0688]
[1723355310870,16.2046,155.65,155.59,7.71190321]
[1723355311453,9.78,155.65,155.6,1.28511818]
[1723355311653,0.8410911,155.66,155.61,1.28500239]
[1723355312750,0.8410911,155.66,155.61,7.71120239]
[1723355314557,7.2652911,155.66,155.61,7.71120239]
[1723355315470,7.2652911,155.66,155.6,6.4267]
[1723355315782,7.2652911,155.66,155.6,7.71168585]
[1723355316163,7.2652911,155.66,155.61,1.28498547]
[1723355316372,7.2652911,155.66,155.6,6.4267]
[1723355316570,7.2652911,155.66,155.6,7.71168752]
[1723355316767,7.2652911,155.66,155.6,6.4267]
[1723355316971,0.8410911,155.66,155.61,17.35068768]
[1723355317371,0.8410911,155.66,155.61,23.77658768]
[1723355317677,0.8410911,155.66,155.61,22.4916]
[1723355318165,0.8410911,155.66,155.62,1.28498791]
[1723355318770,0.8410911,155.66,155.62,6.4258]
[1723355318972,0.8410911,155.66,155.61,16.0657]
[1723355318973,0.8410911,155.66,155.61,22.492]
[1723355319272,0.8410911,155.66,155.62,6.4258]
[1723355319469,0.8410911,155.66,155.62,7.71078792]
[1723355319671,0.8410911,155.66,155.63,6.4253]
[1723355320656,0.8410911,155.66,155.61,16.0657]
[1723355320857,0.8410911,155.66,155.61,17.35060504]
[1723355321657,0.8410911,155.66,155.62,6.4258]
[1723355323779,9.78,155.65,155.59,6.427]
[1723355324286,9.78,155.65,155.6,6.4266]
[1723355325786,16.2046,155.65,155.6,6.4266]
[1723355326966,9.78,155.65,155.6,6.4266]
[1723355327695,6.4251,155.64,155.59,6.4271]
[1723355327992,9.78,155.63,155.58,37.9816]
[1723355329495,9.78,155.63,155.59,6.427]
[1723355330883,9.78,155.63,155.6,6.4266]
[1723355331706,9.78,155.63,155.59,6.4271]
[1723355331993,9.78,155.61,155.58,16.0688]
[1723355333272,9.78,155.61,155.58,22.4963]
[1723355336110,9.78,155.61,155.54,32.6661]
[1723355336398,9.78,155.59,155.54,32.6661]
[1723355336703,9.78,155.59,155.55,6.4285]
[1723355341603,9.78,155.59,155.56,6.4282]
[1723355341801,9.78,155.59,155.53,32.1462]
[1723355342104,9.78,155.61,155.59,6.4271]
[1723355342897,9.78,155.63,155.6,6.4267]
[1723355343279,9.78,155.63,155.59,6.4271]
[1723355345481,9.78,155.63,155.58,6.4275]
[1723355345704,9.78,155.63,155.58,7.71280209]
[1723355346905,9.78,155.63,155.58,6.4275]
[1723355347399,16.2055,155.63,155.58,6.4275]
[1723355349102,16.2055,155.63,155.58,7.71277735]
[1723355349293,16.2055,155.63,155.58,6.4275]
[1723355350703,16.2055,155.63,155.59,1.28527823]
[1723355350908,9.78,155.63,155.59,1.28527823]
[1723355351503,31.3511,155.65,155.59,6.427]
[1723355351706,16.2047,155.65,155.59,6.427]
[1723355352012,9.78,155.65,155.57,17.35491773]
[1723355352204,9.78,155.65,155.61,6.4263]
[1723355352789,7.2654911,155.66,155.6,22.4934]
[1723355352988,10.6210911,155.66,155.6,16.0668]
[1723355353402,6.4247,155.65,155.6,22.4935]
[1723355355384,17.0453911,155.66,155.61,6.4261]
[1723355356010,17.0453911,155.66,155.6,22.4934]
[1723355356595,0.8410911,155.66,155.61,6.426]
[1723355356804,0.8410911,155.66,155.62,6.4257]
[1723355357411,0.8410911,155.66,155.6,31.8448]
[1723355357412,0.8410911,155.66,155.63,7.71038301]
[1723355357613,0.8410911,155.66,155.63,6.4254]
[1723355359714,0.8410911,155.66,155.62,6.4258]
[1723355360102,0.8410911,155.66,155.63,1.28495031]
[1723355361121,0.8410911,155.66,155.62,6.4258]
[1723355361826,0.8410911,155.66,155.63,1.28495159]
[1723355362827,0.8410911,155.66,155.6,38.2711]
[1723355363002,0.8410911,155.66,155.61,6.4262]
[1723355363609,0.8410911,155.66,155.62,6.4257]
[1723355364714,0.8410911,155.66,155.63,7.71034949]
[1723355364914,0.8410911,155.66,155.63,6.4254]
[1723355366500,0.8410911,155.66,155.65,6.4246]
[1723355367500,0.8410911,155.66,155.64,7.70986327]
[1723355367814,0.8410911,155.66,155.65,1.28479995]
[1723355370733,0.8410911,155.66,155.65,6.4246]
[1723355370903,0.8410911,155.66,155.65,7.70930952]
[1723355371429,0.8410911,155.66,155.65,6.4246]
[1723355372931,0.8410911,155.66,155.65,7.70935825]
[1723355375032,0.8410911,155.66,155.65,7.70930988]
[1723355375235,0.8410911,155.66,155.65,68.26350988]
[1723355375746,0.8410911,155.66,155.65,66.9788]
[1723355376135,0.8410911,155.66,155.65,67.10429]
[1723355376535,0.8410911,155.66,155.65,66.9788]
[1723355377837,0.8410911,155.66,155.65,68.26326626]
[1723355378057,0.8410911,155.66,155.65,66.9788]
[1723355378236,0.8410911,155.66,155.65,67.22978]
[1723355378436,0.8410911,155.66,155.65,66.9788]
[1723355378838,0.8410911,155.66,155.65,68.38880441]
[1723355379028,0.8410911,155.66,155.65,67.22978]
[1723355379436,0.8410911,155.66,155.65,68.63966635]
[1723355379647,0.8410911,155.66,155.65,88.76515635]
[1723355382647,0.8410911,155.66,155.65,87.22978]
[1723355383065,0.8410911,155.66,155.65,97.00978]
[1723355384951,0.8410911,155.66,155.65,98.29417975]
[1723355385257,0.8410911,155.66,155.65,97.00978]
[1723355385653,0.8410911,155.66,155.65,98.54515429]
[1723355387742,0.8410911,155.66,155.65,97.26076]
[1723355388553,0.8410911,155.66,155.65,98.54513528]
[1723355389945,0.8410911,155.66,155.65,96.7588]
[1723355390349,0.8410911,155.66,155.65,96.88429]
[1723355390550,0.8410911,155.66,155.65,97.00978]
[1723355390966,0.8410911,155.66,155.65,96.88429]
[1723355391261,0.8410911,155.66,155.65,96.7588]
[1723355391446,0.8410911,155.66,155.65,98.04327443]
[1723355391864,0.8410911,155.66,155.65,98.16876443]
[1723355392257,0.8410911,155.66,155.65,97.00978]
[1723355396247,0.8410911,155.66,155.65,96.88429]
[1723355396445,0.8410911,155.66,155.65,96.7588]
[1723355400559,0.8410911,155.66,155.65,98.29425534]
[1723355400872,0.8410911,155.66,155.65,97.00978]
[1723355402544,0.8410911,155.66,155.65,98.29418961]
[1723355403654,15.5688,155.77,155.7,16.0561]
[1723355403861,15.5688,155.77,155.71,1.28412849]
[1723355404272,15.5688,155.77,155.73,6.4213]
[1723355404472,15.5688,155.77,155.72,22.4751]
[1723355404967,15.5688,155.77,155.72,16.0534]
[1723355405190,15.5688,155.77,155.74,6.4208]
[1723355406669,15.5688,155.77,155.73,7.70543918]
[1723355407568,15.5688,155.77,155.73,6.4213]
[1723355408168,21.9886,155.77,155.72,22.4751]
[1723355408480,9.78,155.76,155.72,22.4751]
[1723355411172,9.78,155.76,155.73,6.4213]
[1723355412073,15.7984,155.81,155.73,9.78]
[1723355412279,15.7984,155.81,155.78,6.419]
[1723355412452,9.78,155.79,155.7,16.0409]
[1723355412654,9.78,155.79,155.75,6.4205]
[1723355412963,9.78,155.79,155.76,6.4201]
[1723355413281,25.5784,155.81,155.77,6.4196]
[1723355413767,25.5784,155.81,155.75,22.4704]
[1723355413953,31.9965,155.81,155.76,6.42]
[1723355414152,9.78,155.79,155.75,22.4707]
[1723355414854,9.78,155.79,155.75,16.0503]
[1723355415667,16.1989,155.79,155.75,16.0503]
[1723355416270,9.78,155.77,155.75,16.0503]
[1723355420072,9.78,155.77,155.75,22.4707]
[1723355420260,9.78,155.79,155.76,6.4201]
[1723355420582,9.78,155.79,155.77,6.4195]
[1723355421074,9.78,155.79,155.76,6.4201]
[1723355421283,9.78,155.79,155.75,22.4708]
[1723355421575,9.78,155.79,155.76,6.42]
[1723355421754,9.78,155.79,155.75,22.4708]
[1723355422580,9.78,155.79,155.76,1.28388944]
[1723355423091,9.78,155.79,155.75,16.0503]
[1723355423389,25.5784,155.81,155.76,1.2838058]
[1723355423683,25.5784,155.81,155.75,16.0503]
[1723355423684,25.5784,155.81,155.77,6.4196]
[1723355424473,25.5784,155.81,155.76,6.4201]
[1723355424672,31.9965,155.81,155.76,6.4201]
[1723355425193,6.4187,155.8,155.75,16.0503]
[1723355425863,9.78,155.79,155.75,16.0503]
[1723355427885,9.78,155.79,155.75,22.4705]
[1723355430076,9.78,155.79,155.76,6.4201]
[1723355430772,9.78,155.79,155.75,22.4704]
[1723355430967,9.78,155.79,155.76,6.42]
[1723355431382,31.9965,155.81,155.76,6.42]
[1723355431591,25.5784,155.81,155.76,6.42]
[1723355432186,9.78,155.77,155.72,22.4757]
[1723355432388,9.78,155.77,155.73,6.4212]
[1723355432578,9.78,155.77,155.72,16.0543]
[1723355432899,9.78,155.77,155.73,6.4213]
[1723355434379,6.4189,155.79,155.74,6.4207]
[1723355434584,9.78,155.78,155.73,1.28405406]
[1723355434782,9.78,155.78,155.74,1.28401985]
[1723355435174,9.78,155.78,155.73,6.421]
[1723355435378,16.1994,155.78,155.72,22.476]
[1723355435891,9.78,155.76,155.72,22.476]
[1723355436267,9.78,155.76,155.73,6.421]
[1723355437582,9.78,155.76,155.72,22.476]
[1723355437785,9.78,155.76,155.72,16.0543]
[1723355438692,9.78,155.74,155.69,16.0574]
[1723355439696,25.625,155.76,155.73,6.4213]
[1723355440083,25.625,155.76,155.71,23.76054575]
[1723355440875,25.625,155.76,155.71,22.4763]
[1723355442104,32.0451,155.76,155.71,22.4763]
[1723355442406,32.0451,155.76,155.71,16.0545]
[1723355442599,9.78,155.74,155.7,6.4225]
[1723355444691,25.625,155.76,155.71,17.33953363]
[1723355444884,0.12549,155.79,155.72,6.4214]
[1723355445084,9.78,155.78,155.72,6.4214]
[1723355445400,9.78,155.78,155.71,22.4773]
[1723355445901,9.78,155.76,155.71,22.4773]
[1723355446209,16.2002,155.76,155.71,22.4773]
[1723355446377,16.2002,155.76,155.71,16.0552]
[1723355447790,9.78,155.74,155.69,6.4229]
[1723355448680,16.201,155.74,155.69,6.4229]
[1723355448875,16.201,155.74,155.7,6.4224]
[1723355448876,9.78,155.74,155.7,6.4224]
[1723355449109,32.0451,155.76,155.71,6.4221]
[1723355449281,22.2651,155.76,155.71,6.4221]
[1723355449484,9.78,155.76,155.71,6.4221]
[1723355449685,22.0402,155.8,155.71,6.4221]
[1723355449686,16.1995,155.78,155.72,6.4217]
[1723355450493,6.4197,155.77,155.72,6.4217]
[1723355450903,6.4197,155.77,155.7,16.2022]
[1723355451599,9.78,155.76,155.69,22.4794]
[1723355451786,16.201,155.74,155.69,22.4794]
[1723355451981,9.78,155.74,155.69,22.4794]
[1723355452386,9.78,155.74,155.7,6.4224]
[1723355453182,9.78,155.74,155.7,7.7066911]
[1723355453807,9.78,155.74,155.7,6.4224]
[1723355454107,9.78,155.74,155.69,16.0565]
[1723355454108,9.78,155.74,155.69,22.4795]
[1723355454605,16.2011,155.74,155.69,22.4795]
[1723355457109,16.2011,155.74,155.7,6.4225]
[1723355457110,9.78,155.74,155.7,6.4225]
[1723355460606,9.78,155.76,155.71,1.28429974]
[1723355460912,22.0402,155.8,155.73,6.4212]
[1723355461091,9.78,155.77,155.72,22.4761]
[1723355461292,16.1998,155.77,155.72,22.4761]
[1723355461801,9.78,155.77,155.72,22.4761]
[1723355462211,9.78,155.77,155.73,1.28412345]
[1723355462816,6.4193,155.78,155.74,1.28411787]
[1723355463206,9.78,155.79,155.74,7.70501787]
[1723355463404,9.78,155.79,155.72,22.4758]
[1723355463716,16.1997,155.77,155.72,22.4758]
[1723355463921,9.78,155.79,155.73,6.4212]
[1723355464096,16.1992,155.79,155.74,6.4209]
[1723355466595,6.4192,155.79,155.74,6.4209]
[1723355466795,16.1992,155.79,155.74,6.4209]
[1723355467295,16.1992,155.79,155.73,6.4213]
[1723355467817,16.1992,155.79,155.72,22.4761]
[1723355467818,6.4194,155.78,155.72,22.4761]
[1723355469718,9.78,155.77,155.72,22.4761]
[1723355470217,9.78,155.77,155.73,6.4211]
[1723355474118,9.78,155.77,155.72,16.0544]
[1723355474320,16.1997,155.77,155.72,16.0544]
[1723355478819,9.78,155.76,155.72,16.0544]
[1723355479825,9.78,155.78,155.74,6.4208]
[1723355480026,9.78,155.78,155.76,6.42]
[1723355480846,10.6210911,155.82,155.77,6.4197]
[1723355481138,10.6210911,155.82,155.77,7.70350163]
[1723355481921,17.0387911,155.82,155.77,7.70350163]
[1723355482122,17.0387911,155.82,155.77,6.4197]
[1723355482338,17.0387911,155.82,155.77,7.70345888]
[1723355483036,17.0387911,155.82,155.77,6.4197]
[1723355484215,17.0387911,155.82,155.75,17.33503944]
[1723355484216,6.4181,155.81,155.75,22.4714]
[1723355485437,6.4181,155.81,155.76,6.4198]
[1723355486440,9.78,155.8,155.76,6.4198]
[1723355486742,9.78,155.8,155.75,22.4717]
[1723355489856,9.78,155.8,155.76,6.4199]
[1723355490159,0.8410911,155.82,155.75,16.0513]
[1723355490160,0.8410911,155.82,155.75,17.33506903]
[1723355490348,10.6210911,155.82,155.75,17.33506903]
[1723355491154,0.8410911,155.82,155.78,6.4192]
[1723355491543,0.8410911,155.82,155.77,6.4196]
[1723355491757,0.8410911,155.82,155.79,6.4188]
[1723355492246,0.8410911,155.82,155.78,6.4192]
[1723355495731,17.0388911,155.82,155.77,22.4678]
[1723355497446,10.6210911,155.82,155.77,22.4678]
[1723355498352,10.6210911,155.82,155.78,6.4193]
[1723355500671,10.6210911,155.82,155.77,16.0482]
[1723355500672,10.6210911,155.82,155.77,22.4678]
[1723355502561,0.8410911,155.82,155.79,6.4188]
[1723355502731,0.8410911,155.82,155.78,6.4192]
[1723355505260,10.6210911,155.82,155.77,16.0482]
[1723355505443,17.0390911,155.82,155.77,16.0482]
[1723355506861,17.0390911,155.82,155.77,22.4677]
[1723355507241,6.4181,155.81,155.77,16.0482]
[1723355507661,10.6210911,155.82,155.77,23.75158419]
[1723355508148,17.0387911,155.82,155.77,23.75158419]
[1723355508556,17.0387911,155.82,155.77,22.4678]
[1723355510757,6.418,155.81,155.77,16.0482]
[1723355511174,16.1987,155.8,155.74,16.0522]
[1723355511460,16.1987,155.8,155.74,22.4728]
[1723355512041,9.78,155.8,155.74,16.0522]
[1723355512246,9.78,155.8,155.75,1.28398393]
[1723355512658,10.6210911,155.82,155.74,16.0522]
[1723355513240,10.6210911,155.82,155.74,17.33599309]
[1723355513744,17.0386911,155.82,155.77,6.4197]
[1723355513958,0.8410911,155.82,155.78,6.4192]
[1723355518447,0.8410911,155.82,155.76,16.0494]
[1723355518653,17.0387911,155.82,155.77,6.4196]
[1723355519453,6.4181,155.81,155.76,22.4694]
[1723355519973,10.6210911,155.82,155.77,6.4196]
[1723355520570,10.6210911,155.82,155.74,6.4208]
[1723355520571,9.78,155.8,155.74,6.4208]
[1723355520747,16.1985,155.8,155.75,6.4204]
[1723355521149,9.78,155.8,155.76,6.42]
[1723355521956,32.9532911,155.82,155.77,6.4197]
[1723355524662,23.1732911,155.82,155.77,6.4197]
[1723355524854,32.9532911,155.82,155.77,6.4197]
[1723355525355,6.4181,155.81,155.76,6.42]
[1723355527479,9.78,155.8,155.76,6.42]
[1723355529056,16.1985,155.8,155.75,16.0504]
[1723355529668,16.7553911,155.82,155.76,6.4201]
[1723355529977,16.7553911,155.82,155.77,1.28387782]
[1723355530179,16.7553911,155.82,155.75,16.0504]
[1723355530369,16.7553911,155.82,155.78,6.4192]
[1723355533177,0.8410911,155.82,155.78,6.4192]
[1723355533379,0.8410911,155.82,155.79,7.70221525]
[1723355533586,0.8410911,155.82,155.79,6.4186]
[1723355534274,0.8410911,155.82,155.8,1.28359185]
[1723355534478,0.8410911,155.82,155.8,6.4184]
[1723355536186,0.8410911,155.82,155.79,6.4188]
[1723355536392,0.8410911,155.82,155.78,16.0479]
[1723355536687,0.8410911,155.82,155.78,22.467]
[1723355538302,10.6210911,155.82,155.78,22.467]
[1723355538675,0.8410911,155.82,155.79,6.4187]
[1723355540595,10.6210911,155.82,155.78,22.4671]
[1723355542769,10.6210911,155.82,155.78,16.0479]
[1723355543788,17.0386911,155.82,155.78,16.0479]
[1723355544089,10.6210911,155.82,155.78,22.4671]
[1723355546089,10.6210911,155.82,155.79,6.4188]
[1723355546281,10.6210911,155.82,155.78,22.4671]
[1723355546886,0.8410911,155.82,155.79,6.4188]
[1723355547783,0.8410911,155.82,155.8,7.70192824]
[1723355547988,0.8410911,155.82,155.8,6.4184]
[1723355548193,0.8410911,155.82,155.79,6.4188]
[1723355557502,0.8410911,155.82,155.8,6.4184]
[1723355560011,0.8410911,155.82,155.81,17.60697747]
[1723355560313,9.78,155.92,155.87,6.4155]
[1723355560487,9.78,155.92,155.88,1.28287229]
[1723355560889,15.9398,155.95,155.88,1.28287229]
[1723355561204,6.4133,155.93,155.88,6.4151]
[1723355561404,16.1933,155.93,155.88,6.4151]
[1723355563016,9.78,155.91,155.87,6.4155]
[1723355563912,9.78,155.91,155.88,6.4149]
[1723355564083,9.78,155.91,155.88,7.69778957]
[1723355564403,9.78,155.91,155.88,6.4149]
[1723355564985,6.4128,155.94,155.88,6.4149]
[1723355565304,9.78,155.92,155.88,6.4149]
[1723355565484,9.78,155.92,155.87,6.4155]
[1723355566405,16.1936,155.92,155.87,6.4155]
[1723355566806,9.78,155.92,155.87,6.4155]
[1723355567635,9.78,155.92,155.88,6.4151]
[1723355574227,6.4127,155.94,155.88,6.4151]
[1723355574407,9.78,155.91,155.88,6.4151]
[1723355582431,9.78,155.91,155.85,21.3854]
[1723355582630,9.78,155.93,155.9,6.4143]
[1723355583537,9.78,155.93,155.88,22.4526]
[1723355583945,9.78,155.93,155.89,6.4146]
[1723355585641,9.78,155.93,155.88,22.453]
[1723355585840,9.78,155.91,155.88,22.453]
[1723355587335,6.4127,155.94,155.89,6.4146]
[1723355587545,9.78,155.91,155.89,6.4146]
[1723355587835,9.78,155.92,155.89,6.4147]
[1723355588231,6.66328,155.95,155.89,6.4147]
[1723355588419,9.78,155.93,155.89,6.4147]
[1723355589152,0.8410911,155.97,155.91,6.4138]
[1723355589439,9.78,155.94,155.91,6.4136]
[1723355590033,9.78,155.94,155.91,7.69622958]
[1723355590229,9.78,155.94,155.92,6.4135]
[1723355591143,7.2525911,155.97,155.92,6.4135]
[1723355591342,9.78,155.96,155.92,6.4135]
[1723355591553,0.8410911,155.97,155.93,17.31502946]